Workbook

Sheet Unit 1 (hidden)
L1: As Used In Powerpoint
L2: 2023-01-01 | M2: 2025 | V2: For this example, depreciation based on when cost incurred, and assuming flat oil price (Revenue equivalent to production)
W4: Percent | X4: Depreciation | AC4: Default Values
N5: Capex | O5: Revenue | P5: Opex | Q5: Royalty | R5: Tax | S5: Net Cash Flow | T5: Profit | V5: Year | W5: Depletion | AD5: Capex | AE5: Revenue | AF5: Opex | AG5: Royalty | AH5: Tax | AI5: Net Cash Flow | AJ5: Profit
L6: =DATE($M$2+M6,MONTH($L$2),DAY($L$2)) -> 2026-01-01 | M6: 1 | N6: =IF($L$24,-Capex/$AD$17*AD6,AD6) -> -50 | S6: =SUM(N6:R6) -> -50 | V6: 1 | W6: =O6/SUM($O$6:$O$15) -> 0 | X6: =SUM(N$6:N6)*W6 -> 0 | AC6: 1 | AD6: -50 | AI6: =SUM(AD6:AH6) -> -50
L7: 2027-01-01 | M7: 2 | N7: =IF($L$24,-Capex/$AD$17*AD7,AD7) -> -100 | S7: =SUM(N7:R7) -> -100 | V7: 2 | W7: 0 | X7: =SUM(N$6:N7)*W7 -> 0 | AC7: 2 | AD7: -100 | AI7: =SUM(AD7:AH7) -> -100
L8: 2028-01-01 | M8: 3 | N8: =IF($L$24,-Capex/$AD$17*AD8,AD8) -> -50 | S8: -50 | V8: 3 | W8: 0 | X8: =SUM(N$6:N8)*W8 -> 0 | AC8: 3 | AD8: -50 | AI8: -50
L9: 2029-01-01 | M9: 4 | O9: =IF($L$27,Revenue/$AE$17*AE9,AE9) -> 100 | P9: =IF($L$30,-Opex*AE9,AF9) -> -10 | Q9: =IF($L$33,-Royalty*AE9,AG9) -> -15 | R9: =IF($L$36,MIN(-(O9+P9+Q9+X9)*TaxRate,0),AH9) -> -11.45084567 | S9: 63.54915433 | T9: =O9+(P9+X9+Q9+R9) -> 21.26585624 | V9: 4 | W9: 0.2114164905 | X9: =SUM(N$6:N9)*W9 -> -42.2832981 | AC9: 4 | AE9: 100 | AF9: -10 | AG9: -15 | AH9: -11.45084567 | AI9: 63.54915433 | AJ9: =AE9+(AF9+AP9+AG9+AH9) -> 63.54915433
L10: 2030-01-01 | M10: 5 | O10: 90 | P10: -9 | Q10: -13.5 | R10: -10.3057611 | S10: 57.1942389 | T10: 19.13927061 | V10: 5 | W10: 0.1902748414 | X10: =SUM(N$6:N10)*W10 -> -38.05496829 | AC10: 5 | AE10: 90 | AF10: -9 | AG10: -13.5 | AH10: -10.3057611 | AI10: 57.1942389 | AJ10: 57.1942389
L11: 2031-01-01 | M11: 6 | O11: 80 | P11: -8 | Q11: -12 | R11: -9.160676533 | S11: 50.83932347 | T11: 17.01268499 | V11: 6 | W11: 0.1691331924 | X11: =SUM(N$6:N11)*W11 -> -33.82663848 | AC11: 6 | AE11: 80 | AF11: -8 | AG11: -12 | AH11: -9.160676533 | AI11: 50.83932347 | AJ11: 50.83932347
L12: 2032-01-01 | M12: 7 | O12: 70 | P12: -7 | Q12: -10.5 | R12: -8.015591966 | S12: 44.48440803 | T12: 14.88609937 | V12: 7 | W12: 0.1479915433 | X12: =SUM(N$6:N12)*W12 -> -29.59830867 | AC12: 7 | AE12: 70 | AF12: -7 | AG12: -10.5 | AH12: -8.015591966 | AI12: 44.48440803 | AJ12: 44.48440803
L13: 2033-01-01 | M13: 8 | O13: 60 | P13: -6 | Q13: -9 | R13: -6.8705074 | S13: 38.1294926 | T13: 12.75951374 | V13: 8 | W13: 0.1268498943 | X13: =SUM(N$6:N13)*W13 -> -25.36997886 | AC13: 8 | AE13: 60 | AF13: -6 | AG13: -9 | AH13: -6.8705074 | AI13: 38.1294926 | AJ13: 38.1294926
L14: 2034-01-01 | M14: 9 | O14: 50 | P14: -5 | Q14: -7.5 | R14: -5.725422833 | S14: 31.77457717 | T14: 10.63292812 | V14: 9 | W14: 0.1057082452 | X14: =SUM(N$6:N14)*W14 -> -21.14164905 | AC14: 9 | AE14: 50 | AF14: -5 | AG14: -7.5 | AH14: -5.725422833 | AI14: 31.77457717 | AJ14: 31.77457717
L15: 2035-01-01 | M15: 10 | O15: 23 | P15: -5 | Q15: =Q14 -> -7.5 | R15: -0.2711945032 | S15: 10.2288055 | T15: 0.5036469345 | V15: 10 | W15: 0.04862579281 | X15: =SUM(N$6:N15)*W15 -> -9.725158562 | AC15: 10 | AE15: 23 | AF15: -5 | AG15: -7.5 | AH15: -0.2711945032 | AI15: 10.2288055 | AJ15: 10.2288055
N17: =SUM(N6:N15) -> -200 | O17: 473 | P17: -50 | Q17: -75 | R17: -51.8 | S17: 96.2 | T17: 96.2 | X17: =SUM(X6:X15) -> -200 | AD17: =SUM(AD6:AD15) -> -200 | AE17: 473 | AF17: -50 | AG17: -75 | AH17: -51.8 | AI17: 96.2 | AJ17: 296.2
N18: =SUM(N17:Q17) -> 148 | R18: =-R17/N18 -> 0.35 | AD18: =SUM(AD17:AG17) -> 148 | AH18: =-AH17/AD18 -> 0.35
R21: Base Case | S21: 96.2 | T21: NCF/Profit
K22: Check box(es) to include in sensitivity
M23: % Change | N23: =-AD17 -> 200 | R23: Sensitivity Case | S23: =S17 -> 96.2 | T23: =IF(S23=S21,"No Change",IF(S23>S21,"Up "&ROUND((S23/S21-1)*100,0)&"%","Down "&ROUND(-(S23/S21-1)*100,0)&"%")) -> No Change
K24: =IF(Capex="Base","",IF(Capex>$N$23,"Up "&ROUND(($N$24/$N$23-1)*100,0)&"%","Down "&ROUND(-($N$24/$N$23-1)*100,0)&"%")) ->  | L24: FALSE | M24: Capex ($) | N24: =IF(L24,P24,"Base") -> Base | P24: 300
N26: =AE17 -> 473
K27: =IF(Revenue="Base","",IF(Revenue>$N$26,"Up "&ROUND(($N$27/$N$26-1)*100,0)&"%","Down "&ROUND(-($N$27/$N$26-1)*100,0)&"%")) ->  | L27: FALSE | M27: Revenue ($) | N27: =IF(L27,P27,"Base") -> Base | P27: 500
N29: =-SUM(AF6:AF14/SUM(AE6:AE14)) -> 0.1
K30: =IF(Opex="Base","",IF(Opex>$N$29,"Up "&ROUND(($N$30/$N$29-1)*100,0)&"%","Down "&ROUND(-($N$30/$N$29-1)*100,0)&"%")) ->  | L30: FALSE | M30: Opex (% Rev) | N30: =IF(L30,P30/100,"Base") -> Base | P30: 0
N32: =-SUM(AG6:AG14/SUM(AE6:AE14)) -> 0.15
K33: =IF(Royalty="Base","",IF(Royalty>$N$32,"Up "&ROUND(($N$33/$N$32-1)*100,0)&"%","Down "&ROUND(-($N$33/$N$32-1)*100,0)&"%")) ->  | L33: FALSE | M33: Royalty (%) | N33: =IF(L33,P33/100,"Base") -> Base | P33: 15
N35: =-AH17/AD18 -> 0.35
K36: =IF(TaxRate="Base","",IF(TaxRate>$N$35,"Up "&ROUND(($N$36/$N$35-1)*100,0)&"%","Down "&ROUND(-($N$36/$N$35-1)*100,0)&"%")) ->  | L36: FALSE | M36: Tax Rate (%) | N36: =IF(L36,P36/100,"Base") -> Base | P36: 25

Sheet Unit 2 (hidden)
L1: As Used In Powerpoint
W3: What a 10% discount rate may represent | AB3: As Discount | AG3: As Interest
L4: Chart 3 | M4: Chart 4 | N4: Chart 1 | P4: Chart 2 | AB4: 100 | AG4: 100 | AN4: =AF16 -> 38.55432894
L5: Interest Rate | M5: Discount Rate | N5: Interest Rate | P5: Interest Rate | Q5: Interest Rate | R5: Interest Rate | W5: Inflation | X5: Real return | Y5: Risk | Z5: Total | AB5: 0.02 | AC5: 0.01 | AE5: 0.07 | AG5: 0.1 | AH5: 0.01 | AI5: 0.02 | AJ5: 0.03 | AK5: 0.07 | AL5: 0.1 | AN5: 0.1
L6: =IF($L27=TRUE,InterestRate,"10%") -> 10% | M6: =IF($L30=TRUE,DiscountRate,10%) -> 0.1 | N6: =L6 -> 10% | P6: =N34 -> 0.01 | Q6: =N34+N35 -> 0.03 | R6: =SUM(N34:N36) -> 0.1 | W6: 0.02 | X6: 0.01 | Y6: 0.07 | Z6: 0.1 | AM6: 0 | AN6: =$AF$16*(1+$AN$5)^AM6 -> 38.55432894
K7: 0 | L7: =IF($L24=TRUE,Investment,"100.00") -> 100.00 | M7: =$L$7/(1+M$6)^$K7 -> 100 | N7: =$M$17*(1+N$6)^$K7 -> 38.55432894 | P7: =$L$7/(1+P$6)^$K7 -> 100 | Q7: =$L$7/(1+Q$6)^$K7 -> 100 | R7: 100 | V7: 1 | W7: =1/(1+W$6)^$V7 -> 0.9803921569 | X7: =1/(1+X$6)^$V7 -> 0.9900990099 | Y7: 0.9345794393 | Z7: =1/(1+Z$6)^$V7 -> 0.9090909091 | AB7: =$AB$4*W7 -> 98.03921569 | AC7: =$AB$4*X7 -> 99.00990099 | AD7: =$AB$4*(1/(1+$AB$5+$AC$5)^$V7) -> 97.08737864 | AE7: =$AB$4*Y7 -> 93.45794393 | AF7: =$AB$4*(1/(1+$AB$5+$AC$5+$AE$5)^$V7) -> 90.90909091 | AG7: =$AB$4*Z7 -> 90.90909091 | AH7: =$AG$4*(1+AH$5)^$V7 -> 101 | AI7: =$AG$4*(1+AI$5)^$V7 -> 102 | AJ7: 103 | AK7: 107 | AL7: 110 | AM7: 1 | AN7: =$AF$16*(1+$AN$5)^AM7 -> 42.40976184
K8: 1 | L8: =$L$7*(1+L$6)^$K8 -> 110 | M8: 90.90909091 | N8: =$M$17*(1+N$6)^$K8 -> 42.40976184 | P8: =$L$7/(1+P$6)^$K8 -> 99.00990099 | Q8: 97.08737864 | R8: 90.90909091 | V8: 2 | W8: =1/(1+W$6)^$V8 -> 0.9611687812 | X8: 0.9802960494 | Y8: 0.8734387283 | Z8: 0.826446281 | AB8: =$AB$4*W8 -> 96.11687812 | AC8: 98.02960494 | AD8: =$AB$4*(1/(1+$AB$5+$AC$5)^$V8) -> 94.25959091 | AE8: =$AB$4*Y8 -> 87.34387283 | AF8: =$AB$4*(1/(1+$AB$5+$AC$5+$AE$5)^$V8) -> 82.6446281 | AG8: =$AB$4*Z8 -> 82.6446281 | AH8: =$AG$4*(1+AH$5)^$V8 -> 102.01 | AI8: 104.04 | AJ8: 106.09 | AK8: 114.49 | AL8: 121 | AM8: 2 | AN8: 46.65073802
K9: 2 | L9: 121 | M9: 82.6446281 | N9: 46.65073802 | P9: 98.02960494 | Q9: 94.25959091 | R9: 82.6446281 | V9: 3 | W9: 0.9423223345 | X9: 0.9705901479 | Y9: 0.8162978769 | Z9: 0.7513148009 | AB9: 94.23223345 | AC9: 97.05901479 | AD9: 91.51416594 | AE9: 81.62978769 | AF9: 75.13148009 | AG9: 75.13148009 | AH9: 103.0301 | AI9: 106.1208 | AJ9: 109.2727 | AK9: 122.5043 | AL9: 133.1 | AM9: 3 | AN9: 51.31581182
K10: 3 | L10: 133.1 | M10: 75.13148009 | N10: 51.31581182 | P10: 97.05901479 | Q10: 91.51416594 | R10: 75.13148009 | V10: 4 | W10: 0.923845426 | X10: 0.9609803445 | Y10: 0.762895212 | Z10: 0.6830134554 | AB10: 92.3845426 | AC10: 96.09803445 | AD10: 88.84870479 | AE10: 76.2895212 | AF10: 68.30134554 | AG10: 68.30134554 | AH10: 104.060401 | AI10: 108.243216 | AJ10: 112.550881 | AK10: 131.079601 | AL10: 146.41 | AM10: 4 | AN10: 56.44739301
K11: 4 | L11: 146.41 | M11: 68.30134554 | N11: 56.44739301 | P11: 96.09803445 | Q11: 88.84870479 | R11: 68.30134554 | V11: 5 | W11: 0.9057308098 | X11: 0.9514656876 | Y11: 0.7129861795 | Z11: 0.6209213231 | AB11: 90.57308098 | AC11: 95.14656876 | AD11: 86.26087844 | AE11: 71.29861795 | AF11: 62.09213231 | AG11: 62.09213231 | AH11: 105.101005 | AI11: 110.4080803 | AJ11: 115.9274074 | AK11: 140.2551731 | AL11: 161.051 | AM11: 5 | AN11: 62.09213231
K12: 5 | L12: 161.051 | M12: 62.09213231 | N12: 62.09213231 | P12: 95.14656876 | Q12: 86.26087844 | R12: 62.09213231 | V12: 6 | W12: 0.8879713822 | X12: 0.9420452353 | Y12: 0.6663422238 | Z12: 0.5644739301 | AB12: 88.79713822 | AC12: 94.20452353 | AD12: 83.74842567 | AE12: 66.63422238 | AF12: 56.44739301 | AG12: 56.44739301 | AH12: 106.1520151 | AI12: 112.6162419 | AJ12: 119.4052297 | AK12: 150.0730352 | AL12: 177.1561 | AM12: 6 | AN12: 68.30134554
K13: 6 | L13: 177.1561 | M13: 56.44739301 | N13: 68.30134554 | P13: 94.20452353 | Q13: 83.74842567 | R13: 56.44739301 | V13: 7 | W13: 0.8705601786 | X13: 0.9327180547 | Y13: 0.6227497419 | Z13: 0.5131581182 | AB13: 87.05601786 | AC13: 93.27180547 | AD13: 81.30915113 | AE13: 62.27497419 | AF13: 51.31581182 | AG13: 51.31581182 | AH13: 107.2135352 | AI13: 114.8685668 | AJ13: 122.9873865 | AK13: 160.5781476 | AL13: 194.87171 | AM13: 7 | AN13: 75.13148009
K14: 7 | L14: 194.87171 | M14: 51.31581182 | N14: 75.13148009 | P14: 93.27180547 | Q14: 81.30915113 | R14: 51.31581182 | V14: 8 | W14: 0.8534903712 | X14: 0.9234832225 | Y14: 0.5820091046 | Z14: 0.4665073802 | AB14: 85.34903712 | AC14: 92.34832225 | AD14: 78.94092343 | AE14: 58.20091046 | AF14: 46.65073802 | AG14: 46.65073802 | AH14: 108.2856706 | AI14: 117.1659381 | AJ14: 126.6770081 | AK14: 171.818618 | AL14: 214.358881 | AM14: 8 | AN14: 82.6446281
K15: 8 | L15: 214.358881 | M15: 46.65073802 | N15: 82.6446281 | P15: 92.34832225 | Q15: 78.94092343 | R15: 46.65073802 | V15: 9 | W15: 0.8367552659 | X15: 0.9143398242 | Y15: 0.5439337426 | Z15: 0.4240976184 | AB15: 83.67552659 | AC15: 91.43398242 | AD15: 76.64167323 | AE15: 54.39337426 | AF15: 42.40976184 | AG15: 42.40976184 | AH15: 109.3685273 | AI15: 119.5092569 | AJ15: 130.4773184 | AK15: 183.8459212 | AL15: 235.7947691 | AM15: 9 | AN15: 90.90909091
K16: 9 | L16: 235.7947691 | M16: 42.40976184 | N16: 90.90909091 | P16: 91.43398242 | Q16: 76.64167323 | R16: 42.40976184 | V16: 10 | W16: 0.8203482999 | X16: 0.9052869547 | Y16: 0.5083492921 | Z16: 0.3855432894 | AB16: 82.03482999 | AC16: 90.52869547 | AD16: 74.40939149 | AE16: 50.83492921 | AF16: 38.55432894 | AG16: 38.55432894 | AH16: 110.4622125 | AI16: 121.899442 | AJ16: 134.3916379 | AK16: 196.7151357 | AL16: 259.374246 | AM16: 10 | AN16: 100
K17: 10 | L17: 259.374246 | M17: 38.55432894 | N17: 100 | P17: 90.52869547 | Q17: 74.40939149 | R17: 38.55432894 | AG17: =SUM(AG7:AG16) -> 614.4567106
W20: Slide 1 Title: | Y20: ="Compound Interest @ "&ROUND($N$6*100,1)&"%"&" and Discounting @ "&ROUND($M$6*100,1)&"%" -> Compound Interest @ 10% and Discounting @ 10%
W21: Slide 2 Title: | Y21: ="Discounting at "&ROUND(N34*100,1)&"%, "&ROUND(SUM($N$34:$N$35)*100,1)&"%, "&ROUND(SUM($N$34:$N$36)*100,1)&"% " -> Discounting at 1%, 3%, 10%
K22: Check box(es) to include in sensitivity | W22: Slide 3 Title: | Y22: ="Compound Interest @ "&ROUND($L$6*100,1)&"%" -> Compound Interest @ 10%
M23: % Change | N23: 100 | W23: Slide 4 Title: | Y23: ="Discounting @ "&ROUND($L$6*100,1)&"%" -> Discounting @ 10%
K24: =IF(Investment="Base","",IF(Investment>$N$23,"Up "&ROUND(($N$24/$N$23-1)*100,0)&"%","Down "&ROUND(-($N$24/$N$23-1)*100,0)&"%")) ->  | L24: FALSE | M24: Initial Investment ($) | N24: =IF(L24,P24,"Base") -> Base | P24: 400
N26: 0.1
K27: =IF(InterestRate="Base","",IF(InterestRate>$N$26,"Up "&ROUND(($N$27/$N$26-1)*100,0)&"%","Down "&ROUND(-($N$27/$N$26-1)*100,0)&"%")) ->  | L27: FALSE | M27: Interest Rate (%) | N27: =IF(L27,P27/100,"Base") -> Base | P27: 12
N29: 0.1
K30: =IF(DiscountRate="Base","",IF(DiscountRate>$N$29,"Up "&ROUND(($N$30/$N$29-1)*100,0)&"%","Down "&ROUND(-($N$30/$N$29-1)*100,0)&"%")) ->  | L30: FALSE | M30: Discount Rate (%) | N30: =IF(L30,P30/100,"Base") -> Base | P30: 10
M34: Real Return (%) | N34: =P34/1000 -> 0.01 | P34: 10
M35: Inflation (%) | N35: =P35/1000 -> 0.02 | P35: 20
M36: Risk Premium (%) | N36: 0.07 | P36: 70

Sheet Unit 3 (hidden)
L1: As Used In Powerpoint
L2: 2023-01-01 | M2: 2025 | W2: For this example, depreciation based on when cost incurred, and assuming flat oil price (Revenue equivalent to production)
X4: Percent | Y4: Depreciation | AD4: Default Values
N5: Capex | O5: Revenue | P5: Opex | Q5: Royalty | R5: Tax | S5: Net Cash Flow | T5: Discount Factor | U5: Discounted Cash Flow | V5: Cumulative DCF | W5: Year | X5: Depletion | AE5: Capex | AF5: Revenue | AG5: Opex | AH5: Royalty | AI5: Tax | AJ5: Net Cash Flow | AK5: Profit
L6: =DATE($M$2+M6,MONTH($L$2),DAY($L$2)) -> 2026-01-01 | M6: 1 | N6: =IF($L$24,-Capex/$AE$17*AE6,AE6) -> -50 | S6: =SUM(N6:R6) -> -50 | T6: =1/(1+DiscRate)^M6 -> 0.8695652174 | U6: =S6*T6 -> -43.47826087 | V6: =U6 -> -43.47826087 | W6: 1 | X6: =O6/SUM($O$6:$O$15) -> 0 | Y6: =SUM(N$6:N6)*X6 -> 0 | AD6: 1 | AE6: -50 | AJ6: =SUM(AE6:AI6) -> -50
L7: 2027-01-01 | M7: 2 | N7: =IF($L$24,-Capex/$AE$17*AE7,AE7) -> -100 | S7: =SUM(N7:R7) -> -100 | T7: 0.7561436673 | U7: =S7*T7 -> -75.61436673 | V7: =V6+U7 -> -119.0926276 | W7: 2 | X7: 0 | Y7: =SUM(N$6:N7)*X7 -> 0 | AD7: 2 | AE7: -100 | AJ7: =SUM(AE7:AI7) -> -100
L8: 2028-01-01 | M8: 3 | N8: =IF($L$24,-Capex/$AE$17*AE8,AE8) -> -50 | S8: -50 | T8: 0.6575162324 | U8: -32.87581162 | V8: =V7+U8 -> -151.9684392 | W8: 3 | X8: 0 | Y8: =SUM(N$6:N8)*X8 -> 0 | AD8: 3 | AE8: -50 | AJ8: -50
L9: 2029-01-01 | M9: 4 | O9: =IF($L$27,Revenue/$AF$17*AF9,AF9) -> 100 | P9: =IF($L$30,-Opex*AF9,AG9) -> -10 | Q9: =IF($L$33,-Royalty*AF9,AH9) -> -15 | R9: =IF($L$36,MIN(-(O9+P9+Q9+Y9)*TaxRate,0),AI9) -> -11.45084567 | S9: 63.54915433 | T9: 0.5717532456 | U9: 36.33443525 | V9: -115.634004 | W9: 4 | X9: 0.2114164905 | Y9: =SUM(N$6:N9)*X9 -> -42.2832981 | AD9: 4 | AF9: 100 | AG9: -10 | AH9: -15 | AI9: -11.45084567 | AJ9: 63.54915433 | AK9: =AF9+(AG9+AQ9+AH9+AI9) -> 63.54915433
L10: 2030-01-01 | M10: 5 | O10: 90 | P10: -9 | Q10: -13.5 | R10: -10.3057611 | S10: 57.1942389 | T10: 0.4971767353 | U10: 28.43564497 | V10: -87.198359 | W10: 5 | X10: 0.1902748414 | Y10: =SUM(N$6:N10)*X10 -> -38.05496829 | AD10: 5 | AF10: 90 | AG10: -9 | AH10: -13.5 | AI10: -10.3057611 | AJ10: 57.1942389 | AK10: 57.1942389
L11: 2031-01-01 | M11: 6 | O11: 80 | P11: -8 | Q11: -12 | R11: -9.160676533 | S11: 50.83932347 | T11: 0.4323275959 | U11: 21.97924249 | V11: -65.21911651 | W11: 6 | X11: 0.1691331924 | Y11: =SUM(N$6:N11)*X11 -> -33.82663848 | AD11: 6 | AF11: 80 | AG11: -8 | AH11: -12 | AI11: -9.160676533 | AJ11: 50.83932347 | AK11: 50.83932347
L12: 2032-01-01 | M12: 7 | O12: 70 | P12: -7 | Q12: -10.5 | R12: -8.015591966 | S12: 44.48440803 | T12: 0.3759370399 | U12: 16.72333668 | V12: -48.49577983 | W12: 7 | X12: 0.1479915433 | Y12: =SUM(N$6:N12)*X12 -> -29.59830867 | AD12: 7 | AF12: 70 | AG12: -7 | AH12: -10.5 | AI12: -8.015591966 | AJ12: 44.48440803 | AK12: 44.48440803
L13: 2033-01-01 | M13: 8 | O13: 60 | P13: -6 | Q13: -9 | R13: -6.8705074 | S13: 38.1294926 | T13: 0.3269017738 | U13: 12.46459877 | V13: -36.03118106 | W13: 8 | X13: 0.1268498943 | Y13: =SUM(N$6:N13)*X13 -> -25.36997886 | AD13: 8 | AF13: 60 | AG13: -6 | AH13: -9 | AI13: -6.8705074 | AJ13: 38.1294926 | AK13: 38.1294926
L14: 2034-01-01 | M14: 9 | O14: 50 | P14: -5 | Q14: -7.5 | R14: -5.725422833 | S14: 31.77457717 | T14: 0.284262412 | U14: 9.032317947 | V14: -26.99886312 | W14: 9 | X14: 0.1057082452 | Y14: =SUM(N$6:N14)*X14 -> -21.14164905 | AD14: 9 | AF14: 50 | AG14: -5 | AH14: -7.5 | AI14: -5.725422833 | AJ14: 31.77457717 | AK14: 31.77457717
L15: 2035-01-01 | M15: 10 | O15: 23 | P15: -5 | Q15: -7.5 | R15: -0.2711945032 | S15: 10.2288055 | T15: 0.2471847061 | U15: 2.528404281 | V15: -24.47045884 | W15: 10 | X15: 0.04862579281 | Y15: =SUM(N$6:N15)*X15 -> -9.725158562 | AD15: 10 | AF15: 23 | AG15: -5 | AH15: -7.5 | AI15: -0.2711945032 | AJ15: 10.2288055 | AK15: 10.2288055
N17: =SUM(N6:N15) -> -200 | O17: 473 | P17: -50 | Q17: -75 | R17: -51.8 | S17: 96.2 | U17: -24.47045884 | Y17: =SUM(Y6:Y15) -> -200 | AE17: =SUM(AE6:AE15) -> -200 | AF17: 473 | AG17: -50 | AH17: -75 | AI17: -51.8 | AJ17: 96.2 | AK17: 296.2
N18: =SUM(N17:Q17) -> 148 | R18: =-R17/N18 -> 0.35 | AE18: =SUM(AE17:AH17) -> 148 | AI18: =-AI17/AE18 -> 0.35
R21: Base Case | S21: 96.2 | T21: NCF/Profit | AE21: =DiscRate -> 0.15 | AF21: =U17 -> -24.47045884 | AH21: ="NPV at " & ROUND(AE21*100,1) & "% = " & IF(AF21<0, "(" & TEXT(ABS(ROUND(AF21,1)),"0.0") & ")", ROUND(AF21,1)) -> NPV at 15% = (24.5)
K22: Check box(es) to include in sensitivity | AE22: 0 | AF22: 96.2
M23: % Change | N23: =-AE17 -> 200 | R23: Sensitivity Case | S23: =S17 -> 96.2 | T23: =IF(S23=S21,"No Change",IF(S23>S21,"Up "&ROUND((S23/S21-1)*100,0)&"%","Down "&ROUND(-(S23/S21-1)*100,0)&"%")) -> No Change | AE23: =AE22+0.01 -> 0.01 | AF23: 82.33284637
K24: =IF(Capex="Base","",IF(Capex>$N$23,"Up "&ROUND(($N$24/$N$23-1)*100,0)&"%","Down "&ROUND(-($N$24/$N$23-1)*100,0)&"%")) ->  | L24: FALSE | M24: Capex ($) | N24: =IF(L24,P24,"Base") -> Base | P24: 150 | AE24: =AE23+0.01 -> 0.02 | AF24: 69.65167847
AE25: 0.03 | AF25: 58.0490509
N26: =AF17 -> 473 | AE26: 0.04 | AF26: 47.42822404
K27: =IF(Revenue="Base","",IF(Revenue>$N$26,"Up "&ROUND(($N$27/$N$26-1)*100,0)&"%","Down "&ROUND(-($N$27/$N$26-1)*100,0)&"%")) ->  | L27: FALSE | M27: Revenue ($) | N27: =IF(L27,P27,"Base") -> Base | P27: 500 | AE27: 0.05 | AF27: 37.70199456
AE28: 0.06 | AF28: 28.79166473
N29: =-SUM(AG6:AG14/SUM(AF6:AF14)) -> 0.1 | AE29: 0.07 | AF29: 20.62613285
K30: =IF(Opex="Base","",IF(Opex>$N$29,"Up "&ROUND(($N$30/$N$29-1)*100,0)&"%","Down "&ROUND(-($N$30/$N$29-1)*100,0)&"%")) ->  | L30: FALSE | M30: Opex (% Rev) | N30: =IF(L30,P30/100,"Base") -> Base | P30: 0 | AE30: 0.08 | AF30: 13.14108941
AE31: 0.09 | AF31: 6.278305737
N32: =-SUM(AH6:AH14/SUM(AF6:AF14)) -> 0.15 | AE32: 0.1 | AF32: -0.01499626471
K33: =IF(Royalty="Base","",IF(Royalty>$N$32,"Up "&ROUND(($N$33/$N$32-1)*100,0)&"%","Down "&ROUND(-($N$33/$N$32-1)*100,0)&"%")) ->  | L33: FALSE | M33: Royalty (%) | N33: =IF(L33,P33/100,"Base") -> Base | P33: 20 | AE33: 0.11 | AF33: -5.786703395
AE34: 0.12 | AF34: -11.08030795
N35: =-AI17/AE18 -> 0.35 | AE35: 0.13 | AF35: -15.93534963
K36: =IF(TaxRate="Base","",IF(TaxRate>$N$35,"Up "&ROUND(($N$36/$N$35-1)*100,0)&"%","Down "&ROUND(-($N$36/$N$35-1)*100,0)&"%")) ->  | L36: FALSE | M36: Tax Rate (%) | N36: =IF(L36,P36/100,"Base") -> Base | P36: 20 | AE36: =AE35+0.01 -> 0.14 | AF36: -20.38780909
AE37: 0.15 | AF37: -24.47045884
AE38: 0.16 | AF38: -28.21317645
M39: Discount Rate | N39: =P39/1000 -> 0.15 | P39: 150 | AE39: 0.17 | AF39: -31.64322456
AE40: 0.18 | AF40: -34.7855013
AE41: 0.19 | AF41: -37.66276467
AE42: 0.2 | AF42: -40.29583372
AE43: 0.21 | AF43: -42.70376913
AE44: =AE43+0.01 -> 0.22 | AF44: -44.90403546
AE45: 0.23 | AF45: -46.91264718
AE46: 0.24 | AF46: -48.74430002
AE47: 0.25 | AF47: -50.41248953

Sheet Unit 4
L1: As Used In Powerpoint
L2: 2023-01-01 | M2: 2025 | W2: For this example, depreciation based on when cost incurred, and assuming flat oil price (Revenue equivalent to production)
X4: Percent | Y4: Depreciation | AD4: Default Values
N5: Capex | O5: Revenue | P5: Opex | Q5: Royalty | R5: Tax | S5: Net Cash Flow | T5: Discount Factor | U5: Discounted Cash Flow | V5: Remaining NPV (Start Yr) | W5: Year | X5: Depletion | AE5: Capex | AF5: Revenue | AG5: Opex | AH5: Royalty | AI5: Tax | AJ5: Net Cash Flow | AK5: Profit
L6: =DATE($M$2+M6,MONTH($L$2),DAY($L$2)) -> 2026-01-01 | M6: 1 | N6: =-Capex/$AE$17*AE6 -> -50 | S6: =SUM(N6:R6) -> -50 | T6: =1/(1+DiscRate)^M6 -> 0.9090909091 | U6: =S6*T6 -> -45.45454545 | V6: =NPV(DiscRate,$S6:$S$15) -> -0.01499626471 | W6: 1 | X6: =O6/SUM($O$6:$O$15) -> 0 | Y6: =SUM(N$6:N6)*X6 -> 0 | AD6: 1 | AE6: -50 | AJ6: =SUM(AE6:AI6) -> -50 | AO6: 96.2 | AP6: =V6 -> -0.01499626471 | AQ6: =AP6-AO6 -> -96.21499626
L7: 2027-01-01 | M7: 2 | N7: =-Capex/$AE$17*AE7 -> -100 | S7: =SUM(N7:R7) -> -100 | T7: 0.826446281 | U7: =S7*T7 -> -82.6446281 | V7: =NPV(DiscRate,$S7:$S$15) -> 49.98350411 | W7: 2 | X7: 0 | Y7: =SUM(N$6:N7)*X7 -> 0 | AD7: 2 | AE7: -100 | AJ7: =SUM(AE7:AI7) -> -100 | AO7: 146.2 | AP7: =V7 -> 49.98350411 | AQ7: =AP7-AO7 -> -96.21649589
L8: 2028-01-01 | M8: 3 | N8: =-Capex/$AE$17*AE8 -> -50 | S8: -50 | T8: 0.7513148009 | U8: -37.56574005 | V8: =NPV(DiscRate,$S8:$S$15) -> 154.9818545 | W8: 3 | X8: 0 | Y8: =SUM(N$6:N8)*X8 -> 0 | AD8: 3 | AE8: -50 | AJ8: -50 | AO8: 246.2 | AP8: 154.9818545 | AQ8: -91.21814548
L9: 2029-01-01 | M9: 4 | O9: =Revenue/$AF$17*AF9 -> 100 | P9: =-Opex*AF9 -> -10 | Q9: =-Royalty*AF9 -> -15 | R9: =MIN(-(O9+P9+Q9+Y9)*TaxRate,0) -> -11.45084567 | S9: 63.54915433 | T9: 0.6830134554 | U9: 43.40492749 | V9: =NPV(DiscRate,$S9:$S$15) -> 220.48004 | W9: 4 | X9: 0.2114164905 | Y9: =SUM(N$6:N9)*X9 -> -42.2832981 | AD9: 4 | AF9: 100 | AG9: -10 | AH9: -15 | AI9: -11.45084567 | AJ9: 63.54915433 | AK9: =AF9+(AG9+AQ9+AH9+AI9) -> -12.17080569 | AO9: 296.2 | AP9: 220.48004 | AQ9: -75.71996003
L10: 2030-01-01 | M10: 5 | O10: 90 | P10: -9 | Q10: -13.5 | R10: -10.3057611 | S10: 57.1942389 | T10: 0.6209213231 | U10: 35.51312249 | V10: =NPV(DiscRate,$S10:$S$15) -> 178.9788896 | W10: 5 | X10: 0.1902748414 | Y10: =SUM(N$6:N10)*X10 -> -38.05496829 | AD10: 5 | AF10: 90 | AG10: -9 | AH10: -13.5 | AI10: -10.3057611 | AJ10: 57.1942389 | AK10: 3.522282869 | AO10: 232.6508457 | AP10: 178.9788896 | AQ10: -53.67195603
L11: 2031-01-01 | M11: 6 | O11: 80 | P11: -8 | Q11: -12 | R11: -9.160676533 | S11: 50.83932347 | T11: 0.5644739301 | U11: 28.69747272 | V11: =NPV(DiscRate,$S11:$S$15) -> 139.6825397 | W11: 6 | X11: 0.1691331924 | Y11: =SUM(N$6:N11)*X11 -> -33.82663848 | AD11: 6 | AF11: 80 | AG11: -8 | AH11: -12 | AI11: -9.160676533 | AJ11: 50.83932347 | AK11: 15.0652564 | AO11: 175.4566068 | AP11: 139.6825397 | AQ11: -35.77406707
L12: 2032-01-01 | M12: 7 | O12: 70 | P12: -7 | Q12: -10.5 | R12: -8.015591966 | S12: 44.48440803 | T12: 0.5131581182 | U12: 22.82753512 | V12: =NPV(DiscRate,$S12:$S$15) -> 102.8114702 | W12: 7 | X12: 0.1479915433 | Y12: =SUM(N$6:N12)*X12 -> -29.59830867 | AD12: 7 | AF12: 70 | AG12: -7 | AH12: -10.5 | AI12: -8.015591966 | AJ12: 44.48440803 | AK12: 22.67859494 | AO12: 124.6172833 | AP12: 102.8114702 | AQ12: -21.8058131
L13: 2033-01-01 | M13: 8 | O13: 60 | P13: -6 | Q13: -9 | R13: -6.8705074 | S13: 38.1294926 | T13: 0.4665073802 | U13: 17.7876897 | V13: =NPV(DiscRate,$S13:$S$15) -> 68.60820919 | W13: 8 | X13: 0.1268498943 | Y13: =SUM(N$6:N13)*X13 -> -25.36997886 | AD13: 8 | AF13: 60 | AG13: -6 | AH13: -9 | AI13: -6.8705074 | AJ13: 38.1294926 | AK13: 26.60482652 | AO13: 80.13287526 | AP13: 68.60820919 | AQ13: -11.52466608
L14: 2034-01-01 | M14: 9 | O14: 50 | P14: -5 | Q14: -7.5 | R14: -5.725422833 | S14: 31.77457717 | T14: 0.4240976184 | U14: 13.4755225 | V14: =NPV(DiscRate,$S14:$S$15) -> 37.3395375 | W14: 9 | X14: 0.1057082452 | Y14: =SUM(N$6:N14)*X14 -> -21.14164905 | AD14: 9 | AF14: 50 | AG14: -5 | AH14: -7.5 | AI14: -5.725422833 | AJ14: 31.77457717 | AK14: 27.11073201 | AO14: 42.00338266 | AP14: 37.3395375 | AQ14: -4.663845159
L15: 2035-01-01 | M15: 10 | O15: 23 | P15: =P14 -> -5 | Q15: =Q14 -> -7.5 | R15: -0.2711945032 | S15: 10.2288055 | T15: 0.3855432894 | U15: 3.943647318 | V15: =NPV(DiscRate,$S15:$S$15) -> 9.298914088 | W15: 10 | X15: 0.04862579281 | Y15: =SUM(N$6:N15)*X15 -> -9.725158562 | AD15: 10 | AF15: 23 | AG15: -5 | AH15: -7.5 | AI15: -0.2711945032 | AJ15: 10.2288055 | AK15: 9.298914088 | AO15: 10.2288055 | AP15: 9.298914088 | AQ15: -0.9298914088
N17: =SUM(N6:N15) -> -200 | O17: 473 | P17: -50 | Q17: -75 | R17: -51.8 | S17: 96.2 | T17: ="NPV @ "&ROUND(DiscRate*100,1)&"% = " -> NPV @ 10% = | U17: =SUM(U6:U15) -> -0.01499626471 | Y17: =SUM(Y6:Y15) -> -200 | AE17: =SUM(AE6:AE15) -> -200 | AF17: 473 | AG17: -50 | AH17: -75 | AI17: -51.8 | AJ17: 96.2 | AK17: 92.10980113
N18: =SUM(N17:Q17) -> 148 | R18: =-R17/N18 -> 0.35 | T18: IRR = | U18: =IRR(S6:S15,DiscRate) -> 0.09997511222 | AE18: =SUM(AE17:AH17) -> 148 | AI18: =-AI17/AE18 -> 0.35
W19: =MIN(MAX(S24,-50%),50%) -> 0 | X19: Plot NCF Change
W20: =L24+L27+L30+L33+L36 -> 0 | X20: # params changing | Z20: Revenue | AB20: Capex | AD20: Opex | AF20: Royalty | AH20: Tax Rate
R21: Base Case | S21: 96.2 | T21: NCF/Profit | W21: =IF(W19<S24,"Change > "&ROUND(W19*100,0)&"% ("&ROUND(S24*100,1)&"%)",IF(W19>S24,"Change > "&ROUND(W19*100,0)&"% ("&ROUND(S24*100,1)&"%)","")) -> 
K22: Check box(es) to include in sensitivity | Z22: =$U$18 -> 0.09997511222 | AB22: =$U$18 -> 0.09997511222 | AD22: =$U$18 -> 0.09997511222 | AF22: =$U$18 -> 0.09997511222 | AH22: =$U$18 -> 0.09997511222
M23: % Change | N23: =-AE17 -> 200 | R23: Sensitivity Case | S23: =S17 -> 96.2 | W23: Start Sens | X23: -0.5 | Y23: =X23 -> -0.5 | Z23: -0.1290856846 | AA23: =$Y23 -> -0.5 | AB23: 0.2759944838 | AC23: =$Y23 -> -0.5 | AD23: 0.114474515 | AE23: =$Y23 -> -0.5 | AF23: 0.1215352656 | AG23: =$Y23 -> -0.5 | AH23: 0.1236703966
K24: =IF(Capex=N23,"",IF(Capex>$N$23,"Up "&ROUND(($N$24/$N$23-1)*100,0)&"%","Down "&ROUND(-($N$24/$N$23-1)*100,0)&"%")) ->  | L24: FALSE | M24: Capex ($) | N24: =IF(L24,P24,IF($AB$20<>"", N23*(1+$AB$21), N23)) -> 200 | P24: 275 | S24: =IF(W20=0,0,IF(W20>1,S17/AJ17-1,(Capex/N23*L24+Revenue/N26*L27+Opex/N29*L30+Royalty/N32*L33+TaxRate/N35*L36)-1)) -> 0 | T24: =IF(W20>1,"% NCF Change","% Change") -> % Change | W24: Incr Sens | X24: 0.05 | Y24: =Y23+$X$24 -> -0.45 | Z24: -0.08863564799 | AA24: =$Y24 -> -0.45 | AB24: 0.247915257 | AC24: -0.45 | AD24: 0.1130477192 | AE24: -0.45 | AF24: 0.1194296612 | AG24: -0.45 | AH24: 0.1213503145
Y25: =Y24+$X$24 -> -0.4 | Z25: -0.05333617006 | AA25: -0.4 | AB25: 0.2234308283 | AC25: -0.4 | AD25: 0.1116159239 | AE25: -0.4 | AF25: 0.117313312 | AG25: -0.4 | AH25: 0.1190196046
N26: =AF17 -> 473 | Y26: -0.35 | Z26: -0.02168027439 | AA26: -0.35 | AB26: 0.2018446981 | AC26: -0.35 | AD26: 0.1101790767 | AE26: -0.35 | AF26: 0.115186054 | AG26: -0.35 | AH26: 0.1166781364
K27: =IF(Revenue=N26,"",IF(Revenue>$N$26,"Up "&ROUND(($N$27/$N$26-1)*100,0)&"%","Down "&ROUND(-($N$27/$N$26-1)*100,0)&"%")) ->  | L27: FALSE | M27: Revenue ($) | N27: =IF(L27,P27,IF($Z$20<>"",N26*(1+$Z$21),N26)) -> 473 | P27: 350 | Y27: -0.3 | Z27: 0.002172106833 | AA27: -0.3 | AB27: 0.1826356237 | AC27: -0.3 | AD27: 0.1087371246 | AE27: -0.3 | AF27: 0.1130477192 | AG27: -0.3 | AH27: 0.114325777
Y28: -0.25 | Z28: 0.02042450608 | AA28: -0.25 | AB28: 0.1654046905 | AC28: -0.25 | AD28: 0.1072900135 | AE28: -0.25 | AF28: 0.1108981351 | AG28: -0.25 | AH28: 0.1119623906
N29: 0.1 | Y29: -0.2 | Z29: 0.03777005629 | AA29: -0.2 | AB29: 0.1498407017 | AC29: -0.2 | AD29: 0.1058376883 | AE29: -0.2 | AF29: 0.1087371246 | AG29: -0.2 | AH29: 0.1095878388
K30: =IF(Opex=0.1,"",IF(Opex>$N$29,"Up "&ROUND(($N$30/$N$29-1)*100,0)&"%","Down "&ROUND(-($N$30/$N$29-1)*100,0)&"%")) ->  | L30: FALSE | M30: Opex (% Rev) | N30: =IF(L30,P30/100,IF($AD$20<>"", N29*(1+$AD$21), N29)) -> 0.1 | P30: 13 | Y30: -0.15 | Z30: 0.05432813476 | AA30: -0.15 | AB30: 0.1356968337 | AC30: -0.15 | AD30: 0.1043800931 | AE30: -0.15 | AF30: 0.1065645061 | AG30: -0.15 | AH30: 0.1072019805
Y31: -0.1 | Z31: 0.07019427295 | AA31: -0.1 | AB31: 0.1227744648 | AC31: -0.1 | AD31: 0.1029171709 | AE31: -0.1 | AF31: 0.1043800931 | AG31: -0.1 | AH31: 0.1048046718
N32: 0.15 | Y32: -0.05 | Z32: 0.08544628395 | AA32: -0.05 | AB32: 0.1109117079 | AC32: -0.05 | AD32: 0.1014488636 | AE32: -0.05 | AF32: 0.1021836941 | AG32: -0.05 | AH32: 0.1023957657
K33: =IF(Royalty=N32,"",IF(Royalty>$N$32,"Up "&ROUND(($N$33/$N$32-1)*100,0)&"%","Down "&ROUND(-($N$33/$N$32-1)*100,0)&"%")) ->  | L33: FALSE | M33: Royalty (%) | N33: =IF(L33,P33/100,IF($AF$20<>"", N32*(1+$AF$21), N32)) -> 0.15 | P33: 30 | Y33: -6.938893904e-17 | Z33: 0.09997511222 | AA33: -6.938893904e-17 | AB33: 0.09997511222 | AC33: -6.938893904e-17 | AD33: 0.09997511222 | AE33: -6.938893904e-17 | AF33: 0.09997511222 | AG33: -6.938893904e-17 | AH33: 0.09997511222
Y34: 0.05 | Z34: 0.1139583834 | AA34: 0.05 | AB34: 0.08985354751 | AC34: 0.05 | AD34: 0.09849585648 | AE34: 0.05 | AF34: 0.09775414538 | AG34: 0.05 | AH34: 0.09754255848
N35: =-AI17/AE18 -> 0.35 | Y35: 0.1 | Z35: 0.1275259995 | AA35: 0.1 | AB35: 0.08040846359 | AC35: 0.1 | AD35: 0.09701103514 | AE35: 0.1 | AF35: 0.09552058576 | AG35: 0.1 | AH35: 0.09509794826
K36: =IF(TaxRate=N35,"",IF(TaxRate>$N$35,"Up "&ROUND(($N$36/$N$35-1)*100,0)&"%","Down "&ROUND(-($N$36/$N$35-1)*100,0)&"%")) ->  | L36: FALSE | M36: Tax Rate (%) | N36: =IF(L36,P36/100,IF($AH$20<>"", N35*(1+$AH$21), N35)) -> 0.35 | P36: 55 | Y36: 0.15 | Z36: 0.1407112294 | AA36: 0.15 | AB36: 0.07153867043 | AC36: 0.15 | AD36: 0.09552058576 | AE36: 0.15 | AF36: 0.09319251725 | AG36: 0.15 | AH36: 0.0926411221
Y37: 0.2 | Z37: 0.1535431607 | AA37: 0.2 | AB37: 0.06324229955 | AC37: 0.2 | AD37: 0.09397215456 | AE37: 0.2 | AF37: 0.09084321244 | AG37: 0.2 | AH37: 0.09017191723
Y38: 0.25 | Z38: 0.1660473944 | AA38: 0.25 | AB38: 0.05546161957 | AC38: 0.25 | AD38: 0.09241115548 | AE38: 0.25 | AF38: 0.08847807272 | AG38: 0.25 | AH38: 0.08769016739
M39: Discount Rate | N39: =P39/1000 -> 0.1 | P39: 100 | Y39: 0.3 | Z39: 0.1782465984 | AA39: 0.3 | AB39: 0.04814669766 | AC39: 0.3 | AD39: 0.09084321244 | AE39: 0.3 | AF39: 0.0860967734 | AG39: 0.3 | AH39: 0.08519570281
Y40: 0.35 | Z40: 0.1901609541 | AA40: 0.35 | AB40: 0.04125409544 | AC40: 0.35 | AD40: 0.08926823188 | AE40: 0.35 | AF40: 0.08369897867 | AG40: 0.35 | AH40: 0.08268835004
Y41: 0.4 | Z41: 0.2018085195 | AA41: 0.4 | AB41: 0.03474582193 | AC41: 0.4 | AD41: 0.08768611814 | AE41: 0.4 | AF41: 0.08128434107 | AG41: 0.4 | AH41: 0.08016793192
Y42: 0.45 | Z42: 0.2132055271 | AA42: 0.45 | AB42: 0.02858848575 | AC42: 0.45 | AD42: 0.0860967734 | AE42: 0.45 | AF42: 0.07885250088 | AG42: 0.45 | AH42: 0.07763426738
Y43: 0.5 | Z43: 0.224366631 | AA43: 0.5 | AB43: 0.0227526032 | AC43: 0.5 | AD43: 0.08450009761 | AE43: 0.5 | AF43: 0.07640308556 | AG43: 0.5 | AH43: 0.07508717139
Y47: Frozen values based on original base values:
Y49: -0.5 | Z49: -0.1290856846 | AA49: -0.5 | AB49: 0.2759944838 | AC49: -0.5 | AD49: 0.114474515 | AE49: -0.5 | AF49: 0.1215352656 | AG49: -0.5 | AH49: 0.1236703966
Y50: -0.45 | Z50: -0.08863564799 | AA50: -0.45 | AB50: 0.247915257 | AC50: -0.45 | AD50: 0.1130477192 | AE50: -0.45 | AF50: 0.1194296612 | AG50: -0.45 | AH50: 0.1213503145
Y51: -0.4 | Z51: -0.05333617006 | AA51: -0.4 | AB51: 0.2234308283 | AC51: -0.4 | AD51: 0.1116159239 | AE51: -0.4 | AF51: 0.117313312 | AG51: -0.4 | AH51: 0.1190196046
Y52: -0.35 | Z52: -0.02168027439 | AA52: -0.35 | AB52: 0.2018446981 | AC52: -0.35 | AD52: 0.1101790767 | AE52: -0.35 | AF52: 0.115186054 | AG52: -0.35 | AH52: 0.1166781364
Y53: -0.3 | Z53: 0.002172106833 | AA53: -0.3 | AB53: 0.1826356237 | AC53: -0.3 | AD53: 0.1087371246 | AE53: -0.3 | AF53: 0.1130477192 | AG53: -0.3 | AH53: 0.114325777
Y54: -0.25 | Z54: 0.02042450608 | AA54: -0.25 | AB54: 0.1654046905 | AC54: -0.25 | AD54: 0.1072900135 | AE54: -0.25 | AF54: 0.1108981351 | AG54: -0.25 | AH54: 0.1119623906
Y55: -0.2 | Z55: 0.03777005629 | AA55: -0.2 | AB55: 0.1498407017 | AC55: -0.2 | AD55: 0.1058376883 | AE55: -0.2 | AF55: 0.1087371246 | AG55: -0.2 | AH55: 0.1095878388
Y56: -0.15 | Z56: 0.05432813476 | AA56: -0.15 | AB56: 0.1356968337 | AC56: -0.15 | AD56: 0.1043800931 | AE56: -0.15 | AF56: 0.1065645061 | AG56: -0.15 | AH56: 0.1072019805
Y57: -0.1 | Z57: 0.07019427295 | AA57: -0.1 | AB57: 0.1227744648 | AC57: -0.1 | AD57: 0.1029171709 | AE57: -0.1 | AF57: 0.1043800931 | AG57: -0.1 | AH57: 0.1048046718
Y58: -0.05 | Z58: 0.08544628395 | AA58: -0.05 | AB58: 0.1109117079 | AC58: -0.05 | AD58: 0.1014488636 | AE58: -0.05 | AF58: 0.1021836941 | AG58: -0.05 | AH58: 0.1023957657
Y59: -6.938893904e-17 | Z59: 0.09997511222 | AA59: -6.938893904e-17 | AB59: 0.09997511222 | AC59: -6.938893904e-17 | AD59: 0.09997511222 | AE59: -6.938893904e-17 | AF59: 0.09997511222 | AG59: -6.938893904e-17 | AH59: 0.09997511222
Y60: 0.05 | Z60: 0.1139583834 | AA60: 0.05 | AB60: 0.08985354751 | AC60: 0.05 | AD60: 0.09849585648 | AE60: 0.05 | AF60: 0.09775414538 | AG60: 0.05 | AH60: 0.09754255848
Y61: 0.1 | Z61: 0.1275259995 | AA61: 0.1 | AB61: 0.08040846359 | AC61: 0.1 | AD61: 0.09701103514 | AE61: 0.1 | AF61: 0.09552058576 | AG61: 0.1 | AH61: 0.09509794826
Y62: 0.15 | Z62: 0.1407112294 | AA62: 0.15 | AB62: 0.07153867043 | AC62: 0.15 | AD62: 0.09552058576 | AE62: 0.15 | AF62: 0.09319251725 | AG62: 0.15 | AH62: 0.0926411221
Y63: 0.2 | Z63: 0.1535431607 | AA63: 0.2 | AB63: 0.06324229955 | AC63: 0.2 | AD63: 0.09397215456 | AE63: 0.2 | AF63: 0.09084321244 | AG63: 0.2 | AH63: 0.09017191723
Y64: 0.25 | Z64: 0.1660473944 | AA64: 0.25 | AB64: 0.05546161957 | AC64: 0.25 | AD64: 0.09241115548 | AE64: 0.25 | AF64: 0.08847807272 | AG64: 0.25 | AH64: 0.08769016739
Y65: 0.3 | Z65: 0.1782465984 | AA65: 0.3 | AB65: 0.04814669766 | AC65: 0.3 | AD65: 0.09084321244 | AE65: 0.3 | AF65: 0.0860967734 | AG65: 0.3 | AH65: 0.08519570281
Y66: 0.35 | Z66: 0.1901609541 | AA66: 0.35 | AB66: 0.04125409544 | AC66: 0.35 | AD66: 0.08926823188 | AE66: 0.35 | AF66: 0.08369897867 | AG66: 0.35 | AH66: 0.08268835004
Y67: 0.4 | Z67: 0.2018085195 | AA67: 0.4 | AB67: 0.03474582193 | AC67: 0.4 | AD67: 0.08768611814 | AE67: 0.4 | AF67: 0.08128434107 | AG67: 0.4 | AH67: 0.08016793192
Y68: 0.45 | Z68: 0.2132055271 | AA68: 0.45 | AB68: 0.02858848575 | AC68: 0.45 | AD68: 0.0860967734 | AE68: 0.45 | AF68: 0.07885250088 | AG68: 0.45 | AH68: 0.07763426738
Y69: 0.5 | Z69: 0.224366631 | AA69: 0.5 | AB69: 0.0227526032 | AC69: 0.5 | AD69: 0.08450009761 | AE69: 0.5 | AF69: 0.07640308556 | AG69: 0.5 | AH69: 0.07508717139
W75: Test Double IRR & Abandonment
W76: 2023-01-01 | X76: 2025
Y79: Capex | Z79: Revenue | AA79: Opex | AB79: Royalty | AC79: Tax | AD79: Net Cash Flow | AE79: Discount Factor | AF79: Discounted Cash Flow | AG79: Remaining NPV (Start Yr)
W80: =DATE($M$2+X80,MONTH($L$2),DAY($L$2)) -> 2026-01-01 | X80: 1 | Y80: -50 | AD80: =SUM(Y80:AC80) -> -50 | AE80: =1/(1+$Z$97)^X80 -> 0.9090909091 | AF80: =AD80*AE80 -> -45.45454545 | AG80: =SUM(AF80:AF$89) -> -38.56932521
W81: 2027-01-01 | X81: 2 | Y81: -100 | AD81: =SUM(Y81:AC81) -> -100 | AE81: =1/(1+$Z$97)^X81 -> 0.826446281 | AF81: =AD81*AE81 -> -82.6446281 | AG81: =SUM(AF81:AF$89) -> 6.885220247
W82: 2028-01-01 | X82: 3 | Y82: -50 | AD82: -50 | AE82: 0.7513148009 | AF82: -37.56574005 | AG82: =SUM(AF82:AF$89) -> 89.52984835
W83: 2029-01-01 | X83: 4 | Z83: 100 | AA83: -10 | AB83: -15 | AC83: -11.45084567 | AD83: 63.54915433 | AE83: 0.6830134554 | AF83: 43.40492749 | AG83: =SUM(AF83:AF$89) -> 127.0955884
W84: 2030-01-01 | X84: 5 | Z84: 90 | AA84: -9 | AB84: -13.5 | AC84: -10.3057611 | AD84: 57.1942389 | AE84: 0.6209213231 | AF84: 35.51312249 | AG84: =SUM(AF84:AF$89) -> 83.6906609
W85: 2031-01-01 | X85: 6 | Y85: =-AB96 -> 0 | Z85: 80 | AA85: -8 | AB85: -12 | AC85: -9.160676533 | AD85: 50.83932347 | AE85: 0.5644739301 | AF85: 28.69747272 | AG85: =SUM(AF85:AF$89) -> 48.17753841
W86: 2032-01-01 | X86: 7 | Z86: =70+AB$96*50% -> 70 | AA86: -7 | AB86: -10.5 | AC86: -8.015591966 | AD86: 44.48440803 | AE86: 0.5131581182 | AF86: 22.82753512 | AG86: =SUM(AF86:AF$89) -> 19.4800657
W87: 2033-01-01 | X87: 8 | Z87: =60+AB$96*30% -> 60 | AA87: -6 | AB87: -9 | AC87: -6.8705074 | AD87: 38.1294926 | AE87: 0.4665073802 | AF87: 17.7876897 | AG87: =SUM(AF87:AF$89) -> -3.347469422
W88: 2034-01-01 | X88: 9 | Z88: =50+AB$96*15% -> 50 | AA88: -5 | AB88: -7.5 | AC88: -5.725422833 | AD88: 31.77457717 | AE88: 0.4240976184 | AF88: 13.4755225 | AG88: =SUM(AF88:AF$89) -> -21.13515912
W89: 2035-01-01 | X89: 10 | Y89: =-Z96 -> -100 | Z89: =23+AB$96*5% -> 23 | AA89: -5 | AB89: -7.5 | AC89: -0.2711945032 | AD89: -89.7711945 | AE89: 0.3855432894 | AF89: -34.61068162 | AG89: =SUM(AF89:AF$89) -> -34.61068162
Y91: =SUM(Y80:Y89) -> -300 | Z91: 473 | AA91: -50 | AB91: -75 | AC91: -51.8 | AD91: -3.8 | AE91: ="NPV @ "&ROUND(DiscRate*100,1)&"% = " -> NPV @ 10% = | AF91: =SUM(AF80:AF89) -> -38.56932521
Y92: =SUM(Y91:AB91) -> 48 | AC92: =-AC91/Y92 -> 1.079166667 | AE92: IRR = | AF92: =IRR(AD80:AD89,DiscRate) -> -0.008291836178
Z96: 100 | AB96: 0
Z97: 0.1 | AA97: 0.15 | AB97: =NPV(AA97,$AD$80:$AD$89) -> -49.18892945
AA98: =AA97-1% -> 0.14 | AB98: =NPV(AA98,$AD$80:$AD$89) -> -47.36219005
AA99: =AA98-1% -> 0.13 | AB99: -45.39418444
AA100: 0.12 | AB100: -43.27763161
AA101: 0.11 | AB101: -41.00515127
AA102: 0.1 | AB102: -38.56932521
AA103: 0.09 | AB103: -35.96277495
AA104: 0.08 | AB104: -33.1782594
AA105: 0.07 | AB105: -30.20879636
AA106: 0.06 | AB106: -27.04781296
AA107: 0.05 | AB107: -23.6893308
AA108: =AA107-1% -> 0.04 | AB108: -20.12819285
AA109: 0.03 | AB109: -16.36034059
AA110: 0.02 | AB110: -12.38315152

Sheet My Cash Flow (hidden)
A1: Use this sheet to build and test your own cash flow model - can you replicate the one on the prior sheet ?
A3: In the cash flow in the prior sheet, the Revenue and Costs are hard-wired
A5: The royalty is calculated for years 1-9 at 15%, but for Year 10 at the same value as Year 9 (don't ask why !)
A7: Tax is at 35%
A9: Depreciation for tax and profit purposes is on a Unit-of-Revenue basis (Revenue standing in for production in this case)

Sheet My Discounting (hidden)
A1: Use this sheet to build and test your own discounting model
A3: See if you can replicate the compound interest and discount tables in the Unit 2 sheet
A5: Then, apply this logic to the cash flow you built in Unit 1, and add a column calculating the discounted cash flow (DCF) for each year at various discount rates
A6: - Do this by using one cell to input your discount rate, and then referring to this cell in your DCF calculation

Sheet My NPV (hidden)
A1: Use this sheet to build and test your own net present value model
A3: See if you can replicate the net present value calculations in the Unit 3 sheet

Sheet My IRR
A1: Use this sheet to build and test your own net present value model
A3: See if you can replicate the IRRcalculations in the Unit 4 sheet
A5: Once you have built your own model (it can't be inserted in Ptotected Sheet 'Unit 4')
B6: Put a further capital investment (such as an abandonment expense) in Year 10 (cell N15 in the model in Unit 4)
B7: Now use the Discount Rate slider and you will see (as you would expect) the NPV (U17) to decrease with an increasse in the Discount Rate
B8: Now look at the 'Remaining NPV' (that is, the NPV at the start of each year) - and how this behaves with an increasiung NOV
B9: Is this what you expect ?
B10: What is the explanation for this ?
L14: u18
L15: v15
